fUST/lending_fUST_20260209
["ID","MTS","AMOUNT","RATE_DAILY","PERIOD"]
[404845300,1770616234375,-156.863482,0.000398,120]
[404845301,1770616234384,-151.0,0.000398,120]
[404845302,1770616234392,-151.0,0.000398,120]
[404845303,1770616234401,-151.0,0.000398,120]
[404845304,1770616234410,-151.0,0.000398,120]
[404845305,1770616234419,-151.0,0.000398,120]
[404845306,1770616234428,-151.0,0.000398,120]
[404845307,1770616234437,-180.656352,0.000398,120]
[404845308,1770616234446,-151.0,0.000398,120]
[404845309,1770616234455,-151.0,0.000398,120]
[404845310,1770616234463,-191.004074,0.000398,120]
[404845311,1770616234472,-1773.13712206,0.0003989,3]
[404845312,1770616234481,-151.0,0.000399,120]
[404845313,1770616234491,-151.0,0.000399,120]
[404845314,1770616234500,-312.120372,0.000399,120]
[404845315,1770616234510,-312.120372,0.000399,120]
[404845316,1770616234519,-312.120372,0.000399,120]
[404845317,1770616234527,-151.0,0.000399,120]
[404845319,1770616234537,-312.120372,0.000399,120]
[404845321,1770616234546,-151.0,0.000399,120]
[404845323,1770616234555,-151.0,0.000399,120]
[404845325,1770616234564,-152.623181,0.000399,120]
[404845327,1770616234574,-152.623181,0.000399,120]
[404845329,1770616234584,-280.705435,0.000399,120]
[404845331,1770616234593,-152.623181,0.000399,120]
[404845333,1770616234602,-280.705435,0.000399,120]
[404845335,1770616234612,-152.623181,0.000399,120]
[404845337,1770616234622,-280.705435,0.000399,120]
[404845338,1770616234632,-280.705435,0.000399,120]
[404845341,1770616234641,-151.0,0.000399,15]
[404845342,1770616234651,-151.0,0.000399,120]
[404845345,1770616234660,-151.0,0.000399,120]
[404845346,1770616234670,-151.0,0.000399,120]
[404845348,1770616234679,-151.0,0.000399,120]
[404845351,1770616234691,-151.0,0.000399,120]
[404845352,1770616234700,-151.0,0.000399,28]
[404845355,1770616234710,-151.0,0.000399,28]
[404845357,1770616234720,-151.0,0.000399,28]
[404845359,1770616234729,-1773.13712206,0.00039989,3]
[404845360,1770616234739,-292.660202,0.0003999,120]
[404845372,1770616234832,-151.0,0.0003999,120]
[404845374,1770616234857,-312.120372,0.0003999,120]
[404845376,1770616234867,-312.120372,0.0003999,120]
[404845378,1770616234878,-312.120372,0.0003999,120]
[404845380,1770616234888,-151.0,0.0003999,120]
[404845382,1770616234897,-312.120372,0.0003999,120]
[404845384,1770616234907,-151.0,0.0003999,120]
[404845386,1770616234917,-151.0,0.0003999,120]
[404845388,1770616234926,-152.623181,0.0003999,120]
[404845390,1770616234936,-152.623181,0.0003999,120]
[404845392,1770616234946,-280.705435,0.0003999,120]
[404845394,1770616234956,-152.623181,0.0003999,120]
[404845396,1770616234966,-280.705435,0.0003999,120]
[404845398,1770616234975,-152.623181,0.0003999,120]
[404845399,1770616234984,-280.705435,0.0003999,120]
[404845401,1770616234994,-280.705435,0.0003999,120]
[404845403,1770616235004,-219.893908,0.0003999,15]
[404845405,1770616235013,-151.0,0.0003999,120]
[404845407,1770616235023,-151.0,0.0003999,120]
[404845409,1770616235032,-151.0,0.0003999,120]
[404845411,1770616235042,-151.0,0.0003999,120]
[404845413,1770616235051,-151.0,0.0003999,120]
[404845415,1770616235061,-151.0,0.0003999,120]
[404845417,1770616235070,-151.0,0.0003999,120]
[404845419,1770616235080,-151.0,0.0003999,120]
[404845421,1770616235089,-151.0,0.0003999,120]
[404845423,1770616235098,-151.0,0.0003999,120]
[404845425,1770616235110,-151.0,0.0003999,120]
[404845427,1770616235121,-151.0,0.0003999,120]
[404845429,1770616235130,-151.0,0.0003999,120]
[404845431,1770616235139,-200.210155,0.0003999,120]
[404845433,1770616235149,-927.28418,0.0003999,60]
[404845435,1770616235158,-927.28418,0.0003999,60]
[404845437,1770616235167,-927.28418,0.0003999,60]
[404845439,1770616235177,-411.638526,0.0003999,120]
[404845441,1770616235187,-927.28418,0.0003999,60]
[404845443,1770616235196,-411.638526,0.0003999,120]
[404845445,1770616235205,-927.28418,0.0003999,60]
[404845447,1770616235214,-411.638526,0.0003999,120]
[404845449,1770616235223,-237.5647493,0.0003999,60]
[404845522,1770616238081,-689.7194307,0.0003999,60]
[404845523,1770616238091,-411.638526,0.0003999,120]
[404845524,1770616238102,-927.28418,0.0003999,60]
[404845525,1770616238112,-411.638526,0.0003999,120]
[404845526,1770616238121,-927.28418,0.0003999,60]
[404845527,1770616238131,-411.638526,0.0003999,120]
[404845528,1770616238140,-411.638526,0.0003999,120]
[404845529,1770616238151,-411.638526,0.0003999,120]
[404845530,1770616238160,-151.0,0.0003999,120]
[404845531,1770616238170,-100.54663583,0.0003999,120]
[404845532,1770616238186,-50.45336417,0.0003999,120]
[404845533,1770616238195,-151.0,0.0003999,120]
[404845534,1770616238204,-151.0,0.0003999,120]
[404845535,1770616238213,-166.950653,0.0003999,120]
[404845536,1770616238223,-151.0,0.0003999,120]
[404845537,1770616238233,-165.245232,0.0003999,120]
[404845538,1770616238245,-153.4738349,0.0003999,120]
[404845549,1770616240287,-151.0,0.00039041,120]
[404845550,1770616240297,-625.8935851,0.0003999,120]
[404845551,1770616240306,-779.36742,0.0003999,120]
[404845552,1770616240317,-265.80266171,0.0003999,120]
[404845564,1770616244579,-1411.29553516,0.00039003,11]
[404845565,1770616244589,-151.0,0.00039041,120]
[404845566,1770616244599,-151.0,0.00039041,120]
[404845567,1770616244609,-151.0,0.00039041,120]
[404845568,1770616244619,-151.0,0.00039041,120]
[404845569,1770616244629,-151.0,0.00039041,120]
[404845570,1770616244639,-151.0,0.00039041,120]
[404845571,1770616244649,-151.0,0.000398,120]
[404845572,1770616244659,-151.0,0.000398,120]
[404845573,1770616244669,-151.0,0.000398,120]
[404845574,1770616244678,-1400.20670523,0.000399,2]
[404845575,1770616244698,-7631.27172655,0.000399,2]
[404845589,1770616246093,-151.0,0.00039041,120]
[404845590,1770616246103,-221.60846226,0.00039041,120]
[404845591,1770616246112,-5042.1222596,0.000399,2]
[404845592,1770616246122,-513.56475829,0.0003999,120]
[404845593,1770616246131,-779.36742,0.0003999,120]
[404845594,1770616246140,-779.36742,0.0003999,120]
[404845595,1770616246150,-779.36742,0.0003999,120]
[404845596,1770616246159,-779.36742,0.0003999,120]
[404845597,1770616246169,-779.36742,0.0003999,120]
[404845598,1770616246178,-507.31,0.0003999,3]
[404845599,1770616246188,-200.0,0.0003999,2]
[404845600,1770616246197,-151.0,0.0003999,120]
[404845601,1770616246211,-151.0,0.0003999,120]
[404845602,1770616246221,-151.0,0.0003999,120]
[404845603,1770616246230,-151.0,0.0003999,120]
[404845604,1770616246241,-253.66,0.0003999,3]
[404845605,1770616246253,-381.87,0.0003999,2]
[404845606,1770616246262,-760.98,0.0003999,3]
[404845607,1770616246272,-151.0,0.0003999,120]
[404845608,1770616246282,-151.0,0.0003999,120]
[404845609,1770616246292,-151.0,0.0003999,120]
[404845610,1770616246301,-151.0,0.0003999,120]
[404845611,1770616246312,-151.0,0.0003999,120]
[404845612,1770616246322,-151.0,0.0003999,120]
[404845613,1770616246332,-151.0,0.0003999,120]
[404845614,1770616246341,-151.0,0.0003999,120]
[404845615,1770616246351,-151.0,0.0003999,120]
[404845616,1770616246360,-151.0,0.0003999,28]
[404845617,1770616246369,-151.0,0.0003999,28]
[404845618,1770616246378,-282.376226,0.0003999,28]
[404845619,1770616246387,-30143.331075,0.0003999,3]
[404845620,1770616246396,-151.0,0.0003999,120]
[404845621,1770616246406,-151.0,0.0003999,120]
[404845622,1770616246415,-151.0,0.0003999,120]
[404845623,1770616246424,-151.0,0.0003999,120]
[404845624,1770616246433,-151.0,0.0003999,120]
[404845625,1770616246442,-151.0,0.0003999,120]
[404845626,1770616246452,-151.0,0.0003999,120]
[404845627,1770616246461,-151.0,0.0003999,120]
[404845628,1770616246471,-151.0,0.0003999,120]
[404845629,1770616246480,-159.350832,0.00039999,120]
[404845630,1770616246489,-312.120372,0.00039999,120]
[404845631,1770616246621,-312.120372,0.00039999,120]
[404845632,1770616246632,-312.120372,0.00039999,120]
[404845633,1770616246641,-151.0,0.00039999,120]
[404845634,1770616246651,-312.12037,0.00039999,120]
[404845635,1770616246661,-151.0,0.00039999,120]
[404845636,1770616246670,-151.0,0.00039999,120]
[404845637,1770616246679,-152.623181,0.00039999,120]
[404845638,1770616246692,-152.623181,0.00039999,120]
[404845639,1770616246701,-280.705435,0.00039999,120]
[404845640,1770616246710,-152.623181,0.00039999,120]
[404845641,1770616246720,-280.705435,0.00039999,120]
[404845642,1770616246729,-152.623189,0.00039999,120]
[404845643,1770616246738,-280.705435,0.00039999,120]
[404845644,1770616246748,-280.705427,0.00039999,120]
[404845645,1770616246757,-151.0,0.00039999,120]
[404845646,1770616246766,-151.0,0.00039999,120]
[404845647,1770616246775,-151.0,0.00039999,120]
[404845648,1770616246785,-151.0,0.00039999,28]
[404845649,1770616246795,-151.0,0.00039999,28]
[404845650,1770616246804,-151.0,0.00039999,120]
[404845651,1770616246813,-151.0,0.00039999,120]
[404845652,1770616246822,-151.0,0.00039999,120]
[404845653,1770616246831,-151.0,0.00039999,120]
[404845654,1770616246840,-151.0,0.00039999,120]
[404845655,1770616246850,-250.0,0.00039999,30]
[404845656,1770616246860,-250.0,0.00039999,30]
[404845657,1770616246869,-250.0,0.00039999,30]
[404845658,1770616246878,-250.0,0.00039999,30]
[404845659,1770616246887,-250.0,0.00039999,30]
[404845660,1770616246895,-250.0,0.00039999,30]
[404845661,1770616246905,-250.0,0.00039999,30]
[404845662,1770616246914,-250.0,0.00039999,30]
[404845663,1770616246924,-2000.0,0.00039999,30]
[404845664,1770616246933,-250.0,0.00039999,30]
[404845665,1770616246943,-250.0,0.00039999,30]
[404845666,1770616246952,-1000.0,0.00039999,30]
[404845667,1770616246963,-250.0,0.00039999,30]
[404845668,1770616246974,-250.0,0.00039999,30]
[404845669,1770616246984,-2000.0,0.00039999,30]
[404845670,1770616246994,-250.0,0.00039999,30]
[404845671,1770616247004,-1037.0,0.00039999,30]
[404845672,1770616247013,-250.0,0.00039999,30]
[404845673,1770616247023,-250.0,0.00039999,30]
[404845674,1770616247033,-2000.0,0.00039999,30]
[404845675,1770616247046,-250.0,0.00039999,30]
[404845676,1770616247056,-542.5616426,0.00039999,30]
[404845677,1770616247065,-250.0,0.00039999,30]
[404845678,1770616247075,-250.0,0.00039999,30]
[404845679,1770616247084,-2000.0,0.00039999,30]
[404845680,1770616247094,-250.0,0.00039999,30]
[404845681,1770616247102,-250.0,0.00039999,30]
[404845682,1770616247112,-250.0,0.00039999,30]
[404845683,1770616247122,-654.20467583,0.00039999,30]
[404845684,1770616247131,-250.0,0.00039999,30]
[404845685,1770616247140,-1000.0,0.00039999,30]
[404845686,1770616247150,-151.0,0.00039999,30]
[404845687,1770616247159,-475.21682615,0.00039999,30]
[404845688,1770616247168,-250.0,0.00039999,30]
[404845689,1770616247178,-250.0,0.00039999,30]
[404845690,1770616247187,-1000.0,0.00039999,30]
[404845691,1770616247196,-156.587,0.00039999,30]
[404845692,1770616247205,-250.0,0.00039999,30]
[404845693,1770616247215,-1000.0,0.00039999,30]
[404845694,1770616247225,-162.380719,0.00039999,30]
[404845695,1770616247234,-250.0,0.00039999,30]
[404845696,1770616247247,-1000.0,0.00039999,30]
[404845697,1770616247256,-168.3888056,0.00039999,30]
[404845698,1770616247265,-250.0,0.00039999,30]
[404845699,1770616247274,-1000.0,0.00039999,30]
[404845700,1770616247283,-174.61919141,0.00039999,30]
[404845701,1770616247293,-250.0,0.00039999,30]
[404845702,1770616247303,-181.08010149,0.00039999,30]
[404845703,1770616247313,-187.78006525,0.00039999,30]
[404845704,1770616247323,-194.72792766,0.00039999,30]
[404845705,1770616247333,-45.16145676,0.00039999,30]
[404845709,1770616365059,303.10001603,0.000189,2]
[404845710,1770616365091,303.10001603,0.00019089,2]
[404845711,1770616365147,303.10001603,0.00019278,2]
[404845712,1770616365211,303.10001603,0.00019467,2]
[404845713,1770616365259,303.10001599,0.00019656,2]
[404845716,1770616630146,500.0,0.00013273,2]
[404845717,1770616630173,500.0,0.00013821,2]
[404845718,1770616633839,515.73504961,0.00013273,2]
[404845724,1770616821232,500.0,0.00013273,2]
[404845725,1770616821284,517.6640634,0.00013821,2]
[404845726,1770616870589,501.15883627,0.00013699,2]
[404845766,1770617432084,-150.0,0.00025291,2]
[404845768,1770617432093,-103.08869634,0.000256,2]
[404845776,1770617432543,-63.57797032,0.000256,2]
[404845777,1770617432552,-2061.10520486,0.000256,2]
[404845778,1770617432562,-252.61,0.000259,2]
[404845779,1770617432571,-1200.0,0.00026241,2]
[404845780,1770617432583,-1047.68985282,0.00026242,2]
[404845781,1770617432595,-250.5264,0.00026242,2]
[404845782,1770617432811,-53.60195178,0.00026242,2]
[404845783,1770617432821,-300.0,0.00026574,2]
[404845784,1770617432830,-300.0,0.00026574,2]
[404845785,1770617432840,-300.0,0.00026574,2]
[404845786,1770617432849,-300.0,0.00026574,2]
[404845787,1770617432858,-177.0,0.00027291,2]
[404845788,1770617432867,-658.24253528,0.00027291,2]
[404845789,1770617432876,-252.6763784,0.00027373,2]
[404845790,1770617432885,-676.93292052,0.00027374,2]
[404845824,1770617438276,-500.0,0.00027373,2]
[404845826,1770617438286,-334.60552907,0.00027373,2]
[404845828,1770617438299,-165.39447093,0.00027373,2]
[404845830,1770617438309,-387.62026733,0.00027373,2]
[404845832,1770617438319,-500.0,0.00027373,2]
[404845834,1770617438329,-500.0,0.00027373,2]
[404845837,1770617438339,-500.0,0.00027373,2]
[404845838,1770617438349,-500.0,0.00027373,2]
[404845840,1770617438358,-500.0,0.00027373,2]
[404845841,1770617438367,-500.0,0.00027373,2]
[404845843,1770617438377,-433.81809342,0.00027373,2]
[404845844,1770617438387,-500.0,0.00027373,2]
[404845846,1770617438396,-500.0,0.00027373,2]
[404845847,1770617438405,-500.0,0.00027373,2]
[404845848,1770617438415,-500.0,0.00027373,2]
[404845849,1770617438425,-500.0,0.00027373,2]
[404845850,1770617438435,-500.0,0.00027373,2]
[404845851,1770617438444,-500.0,0.00027373,2]
[404845852,1770617438453,-500.0,0.00027373,2]
[404845853,1770617438463,-426.53573563,0.00027373,2]
[404845854,1770617438472,-500.0,0.00027373,2]
[404845855,1770617438482,-500.0,0.00027373,2]
[404845856,1770617438492,-500.0,0.00027373,2]
[404845857,1770617438501,-500.0,0.00027373,2]
[404845858,1770617438510,-500.0,0.00027373,2]
[404845859,1770617438520,-500.0,0.00027373,2]
[404845860,1770617438529,-500.0,0.00027373,2]
[404845861,1770617438539,-500.0,0.00027373,2]
[404845862,1770617438548,-500.0,0.00027373,2]
[404845863,1770617438558,-500.0,0.00027373,2]
[404845864,1770617438567,-500.0,0.00027373,2]
[404845865,1770617438576,-500.0,0.00027373,2]
[404845866,1770617438586,-500.0,0.00027373,2]
[404845867,1770617438595,-500.0,0.00027373,2]
[404845868,1770617438605,-500.0,0.00027373,2]
[404845869,1770617438617,-500.0,0.00027373,2]
[404845870,1770617438627,-500.0,0.00027373,2]
[404845871,1770617438636,-500.0,0.00027373,2]
[404845872,1770617438646,-500.0,0.00027373,2]
[404845873,1770617438656,-500.0,0.00027373,2]
[404845874,1770617438666,-500.0,0.00027373,2]
[404845875,1770617438675,-500.0,0.00027373,2]
[404845876,1770617438686,-500.0,0.00027373,2]
[404845877,1770617438695,-500.0,0.00027373,2]
[404845878,1770617438705,-500.0,0.00027373,2]
[404845879,1770617438714,-500.0,0.00027373,2]
[404845880,1770617438724,-500.0,0.00027373,2]
[404845881,1770617438733,-500.0,0.00027373,2]
[404845882,1770617438743,-500.0,0.00027373,2]
[404845883,1770617438753,-500.0,0.00027373,2]
[404845884,1770617438762,-500.0,0.00027373,2]
[404845885,1770617438772,-500.0,0.00027373,2]
[404845886,1770617438781,-500.0,0.00027373,2]
[404845887,1770617438791,-500.0,0.00027373,2]
[404845888,1770617438800,-500.0,0.00027373,2]
[404845889,1770617438809,-500.0,0.00027373,2]
[404845890,1770617438818,-500.0,0.00027373,2]
[404845891,1770617438827,-500.0,0.00027373,2]
[404845892,1770617438836,-500.0,0.00027373,2]
[404845893,1770617438846,-500.0,0.00027373,2]
[404845894,1770617438855,-500.0,0.00027373,2]
[404845895,1770617438865,-500.0,0.00027373,2]
[404845896,1770617438874,-500.0,0.00027373,2]
[404845897,1770617438884,-500.0,0.00027373,2]
[404845898,1770617438893,-500.0,0.00027373,2]
[404845899,1770617438903,-500.0,0.00027373,2]
[404845900,1770617438912,-500.0,0.00027373,2]
[404845901,1770617438922,-500.0,0.00027373,2]
[404845902,1770617438932,-500.0,0.00027373,2]
[404845903,1770617438941,-500.0,0.00027373,2]
[404845904,1770617438950,-500.0,0.00027373,2]
[404845905,1770617438959,-500.0,0.00027373,2]
[404845906,1770617438969,-500.0,0.00027373,2]
[404845907,1770617438978,-177.27983211,0.00027373,2]
[404845908,1770617438987,-500.0,0.00027373,2]
[404845909,1770617438996,-500.0,0.00027373,2]
[404845910,1770617439005,-500.0,0.00027373,2]
[404845911,1770617439015,-500.0,0.00027373,2]
[404845912,1770617439025,-488.85409012,0.00027373,2]
[404845913,1770617439035,-500.0,0.00027373,2]
[404845914,1770617439044,-500.0,0.00027373,2]
[404845915,1770617439054,-500.0,0.00027373,2]
[404845916,1770617439063,-500.0,0.00027373,2]
[404845917,1770617439072,-500.0,0.00027373,2]
[404845918,1770617439082,-500.0,0.00027373,2]
[404845919,1770617439091,-500.0,0.00027373,2]
[404845920,1770617439101,-500.0,0.00027373,2]
[404845921,1770617439111,-500.0,0.00027373,2]
[404845922,1770617439120,-500.0,0.00027373,2]
[404845923,1770617439129,-500.0,0.00027373,2]
[404845924,1770617439139,-500.0,0.00027373,2]
[404845925,1770617439148,-500.0,0.00027373,2]
[404845926,1770617439158,-500.0,0.00027373,2]
[404845927,1770617439167,-500.0,0.00027373,2]
[404845928,1770617439177,-500.0,0.00027373,2]
[404845929,1770617439186,-500.0,0.00027373,2]
[404845930,1770617439195,-500.0,0.00027373,2]
[404845931,1770617439206,-500.0,0.00027373,2]
[404845932,1770617439215,-500.0,0.00027373,2]
[404845933,1770617439225,-500.0,0.00027373,2]
[404845934,1770617439234,-500.0,0.00027373,2]
[404845935,1770617439244,-350.0,0.00027373,2]
[404845936,1770617439254,-500.0,0.00027373,2]
[404845937,1770617439264,-500.0,0.00027373,2]
[404845938,1770617439273,-500.0,0.00027373,2]
[404845939,1770617439283,-500.0,0.00027373,2]
[404845940,1770617439292,-500.0,0.00027373,2]
[404845941,1770617439302,-500.0,0.00027373,2]
[404845942,1770617439312,-49323.06707948,0.00027374,2]
[404845943,1770617439323,-500.0,0.00028483,2]
[404845944,1770617439333,-354.28491471,0.00028485,2]
[404845945,1770617439343,-190.91,0.000285,14]
[404845946,1770617439353,-1680.0,0.00028518,2]
[404845947,1770617439363,-250.0,0.00028742,2]
[404845948,1770617439373,-303.0,0.00028742,2]
[404845949,1770617439382,-196.0,0.00028742,2]
[404845950,1770617439391,-420.0,0.00028742,2]
[404845951,1770617439401,-500.0,0.00028757,2]
[404845952,1770617439411,-500.0,0.00029031,2]
[404845953,1770617439421,-204.0,0.00029291,2]
[404845954,1770617439430,-500.0,0.00029305,2]
[404845955,1770617439440,-219.952318,0.00029343,2]
[404845956,1770617439449,-500.0,0.00029579,2]
[404845957,1770617439459,-500.0,0.00029853,2]
[404845958,1770617439468,-431.36548199,0.00030127,2]
[404845959,1770617439477,-302.86,0.00030137,7]
[404845960,1770617439487,-2351.0,0.00030992,2]
[404845961,1770617439497,-587.0,0.00031087,2]
[404845962,1770617439506,-231.0,0.00031291,2]
[404845963,1770617439515,-985.32655256,0.00031511,2]
[404845964,1770617439524,-203.69166034,0.00031511,2]
[404845965,1770617439534,-151.0,0.00031521,7]
[404845966,1770617439543,-151.0,0.00031521,7]
[404845967,1770617439552,-354.28491471,0.00031522,2]
[404845968,1770617439561,-3566.12,0.00031612,3]
[404845969,1770617439571,-1783.06,0.00031612,3]
[404845970,1770617439580,-891.53,0.00031612,3]
[404845971,1770617439590,-445.76,0.00031612,3]
[404845972,1770617439599,-222.88,0.00031612,3]
[404845973,1770617439608,-668.68,0.00031612,3]
[404845974,1770617439623,-151.0,0.00031622,7]
[404845975,1770617439632,-151.0,0.00031622,7]
[404845976,1770617439641,-151.0,0.00031622,7]
[404845977,1770617439651,-151.0,0.00031622,7]
[404845978,1770617439661,-151.0,0.00031622,7]
[404845979,1770617439671,-219.557441,0.00031622,7]
[404845980,1770617439680,-500.0,0.00031623,120]
[404845981,1770617439690,-500.0,0.00031623,120]
[404845982,1770617439699,-197.64974752,0.00031623,120]
[404845983,1770617439709,-500.0,0.00031623,2]
[404845984,1770617439718,-500.0,0.00031623,2]
[404845985,1770617439727,-500.0,0.00031623,2]
[404845986,1770617439737,-500.0,0.00031623,2]
[404845987,1770617439746,-500.0,0.00031623,2]
[404845988,1770617439860,-500.0,0.00031623,2]
[404845989,1770617439871,-500.0,0.00031623,2]
[404845990,1770617439880,-150.64864005,0.00031623,2]
[404845991,1770617439890,-500.0,0.00031623,120]
[404845992,1770617439899,-500.0,0.00031623,120]
[404845993,1770617439908,-508.34717865,0.00031623,30]
[404845994,1770617439918,-500.0,0.00031623,10]
[404845995,1770617439927,-500.0,0.00031623,10]
[404845996,1770617439937,-500.0,0.00031624,120]
[404845997,1770617439947,-500.0,0.00031624,120]
[404845998,1770617439956,-171.81600405,0.00031624,120]
[404845999,1770617439965,-500.0,0.00031624,120]
[404846000,1770617439974,-538.07074651,0.00031624,120]
[404846001,1770617439983,-500.0,0.00031624,10]
[404846002,1770617439993,-500.0,0.00031624,10]
[404846003,1770617440002,-500.0,0.00031624,10]
[404846004,1770617440011,-492.66327628,0.00031629,2]
[404846005,1770617440021,-504.05655974,0.00031638,10]
[404846006,1770617440031,-500.0,0.00031639,120]
[404846007,1770617440040,-500.0,0.00031639,120]
[404846008,1770617440049,-508.5265719,0.00031639,120]
[404846009,1770617440058,-500.0,0.00031639,120]
[404846010,1770617440067,-500.0,0.00031639,120]
[404846011,1770617440076,-284.4547815,0.00031641,120]
[404846012,1770617440086,-500.0,0.00031641,120]
[404846014,1770617440096,-193.35,0.000317,7]
[404846015,1770617440106,-509.5427,0.00032458,2]
[404846016,1770617440116,-509.5427,0.00032458,3]
[404846017,1770617440125,-509.5427,0.00032458,4]
[404846018,1770617440134,-7132.24,0.00032982,3]
[404846019,1770617440143,-3566.12,0.00032982,3]
[404846020,1770617440153,-1783.06,0.00032982,3]
[404846021,1770617440162,-891.52,0.00032982,3]
[404846022,1770617440171,-445.76,0.00032982,3]
[404846023,1770617440180,-741.97989042,0.00032982,3]
[404846024,1770617440190,-12112.87,0.00033,14]
[404846025,1770617440199,-150.0,0.00033291,120]
[404846026,1770617440208,-554.08415322,0.00033599,4]
[404846027,1770617440218,-335.31331673,0.00033599,4]
[404846028,1770617440227,-190.91,0.000336,30]
[404846029,1770617440237,-823.0,0.00033623,2]
[404846030,1770617440247,-2395.0,0.00033682,3]
[404846031,1770617440256,-492.66327628,0.00034834,2]
[404846032,1770617440265,-500.0,0.00034928,120]
[404846033,1770617440274,-2216.33661287,0.00035468,4]
[404846034,1770617440284,-1341.25326693,0.00035468,4]
[404846035,1770617440293,-741.97989042,0.00035563,2]
[404846036,1770617440303,-3146.254241,0.00036,120]
[404846037,1770617440312,-166.6586179,0.00036648,2]
[404846038,1770617440322,-593.78399838,0.00037,2]
[404846039,1770617440332,-196.2381376,0.00037,2]
[404846040,1770617440341,-784.95255039,0.00037,2]
[404846041,1770617440352,-1766.14323838,0.00037,2]
[404846042,1770617440361,-1068.81119709,0.00037,2]
[404846043,1770617440371,-193.71032041,0.00037497,2]
[404846044,1770617440380,-12112.87,0.000376,14]
[404846045,1770617440390,-500.0,0.00037868,30]
[404846046,1770617440400,-985.32655256,0.0003798,3]
[404846047,1770617440410,-100000.0,0.0003799,2]
[404846048,1770617440420,-151.0,0.00037997,2]
[404846050,1770617440430,-2000.0,0.00038316,120]
[404846051,1770617440439,-500.0,0.00038316,120]
[404846052,1770617440448,-3448.64293396,0.00038346,3]
[404846053,1770617440458,-151.0,0.00038356,120]
[404846054,1770617440467,-162.372524,0.00038356,120]
[404846055,1770617440476,-151.0,0.00038356,120]
[404846056,1770617440487,-151.0,0.00038356,120]
[404846057,1770617440497,-164.291784,0.00038356,120]
[404846058,1770617440507,-151.0,0.00038356,120]
[404846059,1770617440516,-151.0,0.00038356,120]
[404846060,1770617440526,-151.0,0.00038356,120]
[404846061,1770617440535,-151.0,0.00038356,120]
[404846062,1770617440544,-151.0,0.00038356,120]
[404846063,1770617440553,-151.0,0.00038356,120]
[404846064,1770617440563,-151.0,0.00038356,120]
[404846065,1770617440572,-151.0,0.00038356,120]
[404846066,1770617440582,-151.0,0.00038356,120]
[404846067,1770617440591,-151.0,0.00038356,120]
[404846068,1770617440601,-151.0,0.00038356,120]
[404846069,1770617440610,-151.0,0.00038356,120]
[404846070,1770617440621,-151.0,0.00038356,120]
[404846071,1770617440631,-298.544801,0.00038356,120]
[404846072,1770617440640,-151.0,0.00038356,120]
[404846073,1770617440649,-151.0,0.00038356,120]
[404846074,1770617440659,-151.0,0.00038356,120]
[404846075,1770617440667,-197.595786,0.00038356,120]
[404846076,1770617440676,-151.0,0.00038356,120]
[404846077,1770617440688,-151.0,0.00038356,120]